bitfinex-derivatives/quotes_SOLF0:USTF0_20260304
["timestamp","ask_amount","ask_price","bid_price","bid_amount"]
[1772594928437,0.63151816,86.334,86.27,3.83792515]
[1772594929441,4.60295485,86.3,86.236,3.83792515]
[1772594929646,0.64573642,86.299,86.236,3.83792515]
[1772594931432,0.64573642,86.299,86.21,6.62052159]
[1772594931433,0.64573642,86.299,86.238,3.83792515]
[1772594931833,4.60295485,86.3,86.24,3.83792515]
[1772594932034,0.82482572,86.316,86.24,3.83792515]
[1772594932937,10.425,86.328,86.251,3.83792515]
[1772594933136,0.82482572,86.336,86.251,3.83792515]
[1772594933442,0.82482572,86.336,86.256,3.83792515]
[1772594934238,10.425,86.324,86.26,3.83792515]
[1772594935045,4.60295485,86.34,86.263,3.83792515]
[1772594935237,0.72617867,86.339,86.263,3.83792515]
[1772594936143,0.72617867,86.307,86.246,3.83792515]
[1772594936747,0.72617867,86.307,86.25,3.83792515]
[1772594937542,0.72072321,86.329,86.253,3.83792515]
[1772594938144,0.72072321,86.329,86.268,3.83792515]
[1772594938852,4.60295485,86.31,86.241,3.83792515]
[1772594939442,4.60295485,86.31,86.244,3.83792515]
[1772594939750,0.85342479,86.309,86.244,3.83792515]
[1772594940141,11.28042479,86.309,86.245,10.435]
[1772594940345,0.85342479,86.309,86.246,3.83792515]
[1772594940848,0.85342479,86.309,86.23,4.60295485]
[1772594940849,0.85342479,86.309,86.249,3.83792515]
[1772594942046,0.88252832,86.307,86.249,3.83792515]
[1772594942246,4.60295485,86.3,86.249,3.83792515]
[1772594942743,4.60295485,86.26,86.191,3.83792515]
[1772594943146,0.88252832,86.279,86.191,3.83792515]
[1772594943351,10.429,86.296,86.218,3.83792515]
[1772594945450,0.78256795,86.295,86.228,3.83792515]
[1772594945750,0.78256795,86.279,86.201,3.83792515]
[1772594945952,4.60295485,86.27,86.201,3.83792515]
[1772594946150,4.60295485,86.27,86.215,10.438]
[1772594947957,10.52831841,86.35,86.2,4.60295485]
[1772594947958,4.60295485,86.29,86.22,3.83792515]
[1772594948355,0.68824191,86.286,86.22,3.83792515]
[1772594948744,0.68824191,86.286,86.18,2.01791772]
[1772594948745,4.60295485,86.27,86.201,3.83792515]
[1772594948949,0.68824191,86.269,86.201,3.83792515]
[1772594949155,0.68824191,86.269,86.19,4.60295485]
[1772594949156,0.68824191,86.269,86.216,3.83792515]
[1772594950350,4.60295485,86.28,86.218,3.83792515]
[1772594950749,4.60295485,86.3,86.221,3.83792515]
[1772594951656,4.60295485,86.3,86.241,3.83792515]
[1772594951857,0.74732716,86.299,86.241,3.83792515]
[1772594952250,10.429,86.287,86.241,3.83792515]
[1772594952452,10.429,86.287,86.221,3.83792515]
[1772594954258,10.429,86.287,86.224,3.83792515]
[1772594955660,10.429,86.287,86.22,4.60295485]
[1772594955661,0.74322511,86.296,86.226,3.83792515]
[1772594956752,0.74322511,86.296,86.22,4.60295485]
[1772594956753,0.74322511,86.296,86.234,3.83792515]
[1772594957456,0.74322511,86.296,86.236,10.436]
[1772594957665,5.36366304,86.28,86.221,3.83792515]
[1772594957964,10.52831841,86.324,86.191,3.83792515]
[1772594957965,0.76070819,86.259,86.191,3.83792515]
[1772594958662,0.76070819,86.259,86.193,3.93857126]
[1772594959358,0.76070819,86.259,86.198,3.93857126]
[1772594959765,0.71310321,86.239,86.179,3.93857126]
[1772594960062,0.71310321,86.239,86.181,10.442]
[1772594960258,0.71325664,86.258,86.182,3.61380102]
[1772594960855,0.71325664,86.255,86.187,3.61380102]
[1772594961054,4.60295485,86.24,86.187,3.61380102]
[1772594961256,5.24766786,86.24,86.187,3.61380102]
[1772594963254,11.07771301,86.259,86.189,3.61958022]
[1772594963560,0.64471301,86.259,86.189,3.61958022]
[1772594963866,0.64471301,86.259,86.193,3.62206352]
[1772594964065,4.60295485,86.24,86.161,3.62206352]
[1772594965065,4.60295485,86.24,86.178,3.62206352]
[1772594965966,4.60295485,86.24,86.181,3.61827783]
[1772594966565,19.17643681,86.297,86.133,3.61827783]
[1772594966566,4.60295485,86.19,86.133,3.61827783]
[1772594967065,0.64731779,86.209,86.149,3.61827783]
[1772594967469,4.60295485,86.19,86.132,3.61380102]
[1772594967669,0.71471893,86.189,86.132,3.61380102]
[1772594968472,4.60295485,86.21,86.136,11.02808424]
[1772594969075,4.60295485,86.21,86.141,11.02808424]
[1772594970475,4.60295485,86.23,86.148,11.01071802]
[1772594970774,4.60295485,86.24,86.166,11.01071802]
[1772594970973,10.434,86.248,86.181,11.01071802]
[1772594971173,4.60295485,86.25,86.181,11.01071802]
[1772594971677,4.60295485,86.25,86.195,11.04990562]
[1772594972078,4.60295485,86.26,86.195,11.04990562]
[1772594973382,4.60295485,86.26,86.197,11.1530664]
[1772594973882,10.433,86.259,86.197,11.1530664]
[1772594974384,4.60295485,86.24,86.185,10.442]
[1772594975182,4.60295485,86.26,86.188,11.1530664]
[1772594975386,4.60295485,86.24,86.188,11.1530664]
[1772594975585,4.60295485,86.24,86.151,11.15252161]
[1772594975878,4.60295485,86.24,86.171,11.15252161]
[1772594976676,10.435,86.239,86.174,11.15252161]
[1772594977485,4.60295485,86.24,86.176,11.11840592]
[1772594977983,4.60295485,86.24,86.178,11.11840592]
[1772594978183,15.03795485,86.24,86.178,11.11840592]
[1772594978584,4.60295485,86.24,86.179,10.443]
[1772594978885,4.60295485,86.24,86.18,11.11840592]
[1772594979184,4.60295485,86.24,86.182,11.11840592]
[1772594979581,4.60295485,86.24,86.151,11.11770849]
[1772594979777,4.60295485,86.25,86.151,11.11770849]
[1772594979976,4.60295485,86.22,86.151,11.11770849]
[1772594981184,4.60295485,86.2,86.151,11.11770849]
[1772594986086,10.441,86.195,86.127,11.11607947]
[1772594986290,4.60295485,86.2,86.127,11.11607947]
[1772594986483,4.61856155,86.19,86.127,11.11607947]
[1772594986783,4.61856155,86.19,86.129,11.11607947]
[1772594987489,4.61856155,86.21,86.144,11.10623876]
[1772594988188,10.439,86.209,86.148,11.10623876]
[1772594988689,4.61856155,86.21,86.15,10.446]
[1772594988883,4.61856155,86.21,86.151,11.10612932]
[1772594989784,4.61856155,86.21,86.152,10.446]
[1772594989987,4.61856155,86.21,86.153,11.08362939]
[1772594990288,10.44,86.2,86.136,10.448]
[1772594990486,4.61856155,86.21,86.137,11.08362939]
[1772594991084,15.05756155,86.21,86.148,10.446]
[1772594991286,15.05756155,86.21,86.149,11.08362939]
[1772594992186,15.05756155,86.21,86.15,10.446]
[1772594992381,15.05756155,86.21,86.151,11.08877955]
[1772594993892,15.05756155,86.21,86.1,4.61856155]
[1772594993893,4.61856155,86.19,86.135,11.0659453]
[1772594994488,4.61856155,86.21,86.141,11.0659453]
[1772594995294,10.439,86.207,86.143,10.447]
[1772594995496,10.439,86.207,86.144,11.06111951]
[1772594996589,10.44,86.197,86.144,11.06111951]
[1772594997896,10.439,86.207,86.144,11.06111951]
[1772594999190,10.439,86.207,86.148,10.446]
[1772594999396,10.439,86.207,86.149,11.07010999]
[1772594999698,10.438,86.216,86.149,11.07010999]
[1772594999898,4.61856155,86.21,86.149,11.07010999]
[1772595000991,4.61856155,86.19,86.149,11.07010999]
[1772595001598,4.61856155,86.21,86.149,11.07010999]
[1772595002491,15.05756155,86.21,86.149,11.07010999]
[1772595002798,4.61856155,86.19,86.136,11.05597755]
[1772595003400,15.05756155,86.21,86.14,11.01183955]
[1772595003594,4.61856155,86.22,86.141,11.01183955]
[1772595003799,4.61856155,86.24,86.161,11.01183955]
[1772595003999,4.61856155,86.24,86.185,11.01183955]
[1772595004599,4.61856155,86.22,86.161,11.01183955]
[1772595004903,4.61856155,86.24,86.161,11.01183955]
[1772595005097,4.61856155,86.24,86.165,11.01183955]
[1772595005498,4.61856155,86.21,86.13,4.61856155]
[1772595005699,4.61856155,86.21,86.146,10.99243808]
[1772595006098,4.61856155,86.23,86.146,10.99243808]
[1772595006398,4.61856155,86.22,86.148,10.99243808]
[1772595006597,4.61856155,86.2,86.148,10.99243808]
[1772595006998,4.61856155,86.2,86.132,10.99243808]
[1772595007203,4.61856155,86.18,86.132,10.99243808]
[1772595007905,4.61856155,86.18,86.091,11.08602851]
[1772595008300,10.443,86.178,86.102,11.08602851]
[1772595008699,10.443,86.178,86.104,10.452]
[1772595008896,10.443,86.178,86.105,11.08602851]
[1772595009398,10.444,86.167,86.105,11.08602851]
[1772595009601,4.61856155,86.16,86.105,11.08602851]
[1772595009906,4.61856155,86.2,86.126,11.13748324]
[1772595010103,10.44,86.199,86.126,11.13748324]
[1772595010804,4.61856155,86.18,86.126,11.13748324]
[1772595011305,4.61856155,86.17,86.126,11.13748324]
[1772595012499,4.61856155,86.19,86.126,11.13748324]
[1772595013500,10.442,86.188,86.126,11.13748324]
[1772595014205,4.61856155,86.15,86.088,11.10342691]
[1772595014405,4.61856155,86.13,86.088,11.10342691]
[1772595016602,4.61856155,86.13,86.052,11.05040815]
[1772595017910,4.61856155,86.15,86.064,11.06687096]
[1772595018911,10.446,86.149,86.065,10.456]
[1772595019111,10.446,86.149,86.066,11.06693019]
[1772595019515,4.61856155,86.15,86.081,11.057115]
[1772595019807,4.61856155,86.17,86.101,11.057115]
[1772595020011,4.61856155,86.17,86.102,10.452]
[1772595020213,124.0,86.22,86.103,11.057115]
[1772595020214,4.61856155,86.19,86.103,11.057115]
[1772595021214,4.61856155,86.19,86.109,11.0617552]
[1772595021709,10.443,86.177,86.109,11.0617552]
[1772595022914,10.441,86.188,86.111,11.0617552]
[1772595024115,4.61856155,86.19,86.111,11.0617552]
[1772595024512,4.61856155,86.19,86.123,11.06846786]
[1772595025911,4.61856155,86.19,86.127,11.07656289]
[1772595026620,4.61856155,86.2,86.141,11.07656289]
[1772595027713,10.437,86.225,86.143,11.09777071]
[1772595028018,4.61856155,86.21,86.143,11.09777071]
[1772595028215,4.61856155,86.23,86.143,11.09777071]
[1772595028612,4.61856155,86.22,86.154,11.09777071]
[1772595029221,4.61856155,86.24,86.171,11.09777071]
[1772595029718,4.61856155,86.24,86.176,11.12553945]
[1772595030316,10.436,86.237,86.176,11.12553945]
[1772595030709,10.59796092,86.274,86.176,11.12553945]
[1772595030911,4.61856155,86.24,86.176,11.12553945]
[1772595031624,4.61856155,86.24,86.178,11.11721231]
[1772595032109,10.435,86.239,86.178,11.11721231]
[1772595032312,4.61856155,86.24,86.178,11.11721231]
[1772595033316,4.61856155,86.24,86.18,11.12148616]
[1772595034021,15.05356155,86.24,86.18,11.12148616]
[1772595034723,4.61856155,86.25,86.18,11.12148616]
[1772595034921,4.61856155,86.23,86.18,11.12148616]
[1772595035127,10.437,86.227,86.16,11.12148616]
[1772595036021,4.61856155,86.25,86.163,11.1359241]
[1772595036217,4.61856155,86.22,86.163,11.1359241]
[1772595037218,4.61856155,86.23,86.163,11.1359241]
[1772595037523,4.61856155,86.23,86.175,11.29942423]
[1772595038114,4.61856155,86.23,86.176,10.443]
[1772595038325,4.61856155,86.23,86.177,11.29942423]
[1772595041419,4.61856155,86.25,86.189,11.34764839]
[1772595042229,10.434,86.248,86.189,11.34764839]
[1772595042728,4.61856155,86.3,86.189,11.34764839]
[1772595042729,4.61856155,86.23,86.189,11.34764839]
[1772595042921,4.61856155,86.23,86.171,11.34764839]
[1772595043829,4.61856155,86.21,86.141,11.42938077]
[1772595044834,4.61856155,86.21,86.142,11.42938077]
[1772595045232,10.442,86.188,86.142,11.42938077]
[1772595045537,4.61856155,86.19,86.111,11.45502039]
[1772595045733,4.61856155,86.17,86.111,11.45502039]
[1772595046434,10.444,86.169,86.111,11.45502039]
[1772595046738,4.61856155,86.17,86.111,11.45502039]
[1772595047533,4.61856155,86.15,86.111,11.45502039]
[1772595047732,4.61856155,86.13,86.073,11.45825823]
[1772595048536,15.07440727,86.13,86.073,11.45825823]
[1772595048732,4.62540727,86.13,86.045,11.45808281]
[1772595049237,10.451,86.109,86.045,11.45808281]
[1772595049432,4.62540727,86.11,86.045,11.45808281]
[1772595050741,10.451,86.108,86.045,11.45808281]
[1772595050942,4.62540727,86.11,86.045,11.45808281]
[1772595051341,10.449,86.123,86.047,11.3905165]
[1772595051539,4.62540727,86.13,86.047,11.3905165]
[1772595052244,4.62540727,86.13,86.062,11.3905165]
[1772595052945,10.449,86.129,86.062,11.3905165]
[1772595053748,10.447,86.141,86.062,11.3905165]
[1772595053944,4.62540727,86.15,86.062,11.3905165]
[1772595054143,4.62540727,86.15,86.081,11.41302149]
[1772595054948,4.62540727,86.13,86.081,11.41302149]
[1772595056039,4.62540727,86.13,86.051,11.42722964]
[1772595057045,4.62540727,86.11,86.051,11.42722964]
[1772595060246,15.07640727,86.11,86.051,11.42722964]
[1772595060448,4.62540727,86.11,86.051,11.42722964]
[1772595060649,4.62540727,86.15,86.051,11.42722964]
[1772595060650,4.62540727,86.13,86.051,11.42722964]
[1772595060846,4.62540727,86.15,86.051,11.42722964]
[1772595061447,10.447,86.144,86.063,11.43622307]
[1772595061746,4.62540727,86.15,86.07,4.62540727]
[1772595061944,4.62540727,86.16,86.087,11.43622307]
[1772595062143,10.444,86.168,86.05,4.62540727]
[1772595062144,196.21796092,86.223,86.091,11.43622307]
[1772595062344,4.62540727,86.17,86.091,11.43622307]
[1772595062648,4.62540727,86.17,86.095,11.43622307]
[1772595063454,10.444,86.169,86.097,11.33390562]
[1772595063850,4.62540727,86.15,86.097,11.33390562]
[1772595064149,4.62540727,86.15,86.051,11.33390562]
[1772595064356,4.62540727,86.13,86.051,11.33390562]
[1772595064754,10.449,86.127,86.057,11.33390562]
[1772595064956,4.62540727,86.13,86.057,11.33390562]
[1772595065352,4.62540727,86.13,86.058,11.32795491]
[1772595065853,4.62540727,86.11,86.058,11.32795491]
[1772595066354,4.62540727,86.11,85.958,185.76]
[1772595066355,10.451,86.109,86.029,11.32795491]
[1772595066956,10.452,86.099,86.037,11.32795491]
[1772595067152,4.62540727,86.11,86.037,11.32795491]
[1772595067752,4.62540727,86.11,86.05,11.33682617]
[1772595069359,10.451,86.108,86.05,11.33682617]
[1772595069747,4.62540727,86.11,86.052,10.458]
[1772595069955,4.62540727,86.15,86.061,11.33217536]
[1772595070553,10.447,86.142,86.064,11.33217536]
[1772595071258,4.62540727,86.15,86.07,11.33217536]
[1772595071453,4.62540727,86.13,86.07,11.33217536]
[1772595071855,10.449,86.127,86.07,11.33217536]
[1772595072857,4.62540727,86.13,86.07,11.33217536]
[1772595073558,4.62540727,86.13,86.024,162.739]
[1772595073559,4.62540727,86.15,86.083,11.34277853]
[1772595073755,2.02068883,86.192,86.083,11.34277853]
[1772595073756,4.62540727,86.17,86.083,11.34277853]
[1772595074660,4.62540727,86.15,86.09,11.34277853]
[1772595075657,4.62540727,86.15,86.092,11.36956809]
[1772595076157,2.02068883,86.192,86.076,11.36956809]
[1772595076158,4.62540727,86.13,86.076,11.36956809]
[1772595077364,4.62540727,86.13,86.079,11.36956809]
[1772595077763,4.62540727,86.15,86.085,11.34503739]
[1772595078662,4.62540727,86.15,86.088,11.34506168]
[1772595079565,4.62540727,86.15,86.09,11.34146025]
[1772595080163,4.62540727,86.15,86.06,4.62540727]
[1772595080164,4.62540727,86.15,86.095,11.34146025]
[1772595081868,10.444,86.169,86.095,11.34146025]
[1772595082568,4.62540727,86.17,86.097,11.34030857]
[1772595083969,15.06940727,86.17,86.104,11.32091381]
[1772595084468,10.445,86.161,86.104,11.32091381]
[1772595084665,4.62540727,86.15,86.081,11.32091381]
[1772595085268,10.447,86.14,86.081,11.32091381]
[1772595085665,4.62540727,86.15,86.081,11.32091381]
[1772595086670,4.62540727,86.15,86.083,11.31981101]
[1772595087275,4.62540727,86.13,86.076,11.31970315]
[1772595088271,4.62540727,86.14,86.076,11.31970315]
[1772595088872,162.618,86.089,86.003,8.40390296]
[1772595089067,162.618,86.089,86.0,2.02226819]
[1772595089068,4.62540727,86.01,85.949,36.50538953]
[1772595089266,4.62540727,86.05,85.94,15.05520798]
[1772595089267,4.62540727,85.98,85.94,15.05520798]
[1772595089471,4.62540727,85.98,85.94,0.00020798]
[1772595089773,9.29668802,86.024,85.94,0.00020798]
[1772595089969,4.62540727,86.01,85.94,0.00020798]
[1772595090173,9.29668802,86.009,85.94,0.00020798]
[1772595090374,4.62540727,86.01,85.94,0.00020798]
[1772595090973,15.08840727,86.01,85.94,0.00020798]
[1772595091273,4.62540727,86.01,85.94,0.00020798]
[1772595091776,4.62540727,85.99,85.94,0.00020798]
[1772595091976,10.466,85.986,85.94,0.00020798]
[1772595092380,4.62540727,85.95,85.877,27.38360676]
[1772595092568,9.29668802,85.981,85.851,27.38360676]
[1772595092772,4.62540727,86.01,85.901,27.38360676]
[1772595092969,4.62540727,86.03,85.921,27.38360676]
[1772595093172,4.62540727,86.05,85.9,4.62540727]
[1772595093173,4.62540727,86.05,85.941,27.38360676]
[1772595093374,4.62540727,86.06,85.96,32.05435968]
[1772595094379,4.62540727,86.05,85.96,32.05435968]
[1772595095276,4.62540727,86.03,85.941,27.42895241]
[1772595095483,10.461,86.029,85.941,27.42895241]
[1772595095682,4.62540727,86.01,85.921,27.38411783]
[1772595096381,10.463,86.009,85.921,27.38411783]
[1772595097080,4.62540727,85.95,85.85,4.62540727]
[1772595097276,4.62540727,85.95,85.8,4.62540727]
[1772595097277,4.62540727,85.93,85.84,4.62540727]
[1772595097583,4.62540727,85.95,85.86,4.62540727]
[1772595097772,4.62540727,85.97,85.88,4.62540727]
[1772595097974,4.62540727,85.99,85.9,4.62540727]
[1772595098783,10.466,85.986,85.9,4.62540727]
[1772595098981,4.62540727,85.99,85.9,4.62540727]
[1772595099280,4.62540727,85.99,85.901,18.57383855]
[1772595099677,10.466,85.989,85.921,18.56089204]
[1772595101886,10.464,86.005,85.921,18.56089204]
[1772595102083,4.62540727,86.01,85.921,18.56089204]
[1772595102580,10.467,85.975,85.91,23.19118494]
[1772595104488,10.469,85.96,85.91,18.56577767]
[1772595105487,10.471,85.946,85.89,4.62540727]
[1772595105677,4.62540727,85.97,85.89,4.62540727]
[1772595106481,10.469,85.961,85.89,4.62540727]
[1772595107081,10.471,85.946,85.87,4.62540727]
[1772595107583,10.471,85.946,85.871,9.27254142]
[1772595107784,10.473,85.93,85.871,9.27254142]
[1772595108195,10.473,85.93,85.757,11.58]
[1772595108196,4.62540727,85.94,85.85,4.62540727]
[1772595108694,10.474,85.922,85.85,4.62540727]
[1772595109291,4.62540727,85.94,85.85,4.62540727]
[1772595109292,10.476,85.907,85.85,4.62540727]
[1772595109487,4.62540727,85.92,85.83,4.62540727]
[1772595110086,4.62540727,85.92,85.831,4.65167386]
[1772595110384,10.476,85.907,85.831,4.65167386]
[1772595110588,4.64857603,85.92,85.831,4.65167386]
[1772595112191,4.64857603,85.9,85.831,4.65167386]
[1772595112690,162.983,85.896,85.783,4.65870308]
[1772595112994,4.64857603,85.89,85.791,4.65870308]
[1772595113193,4.64857603,85.89,85.79,4.64857603]
[1772595113194,4.64857603,85.89,85.801,4.65870308]
[1772595113498,3.24353916,85.869,85.801,0.00070308]
[1772595114395,10.484,85.84,85.756,10.494]
[1772595114600,10.484,85.84,85.78,4.64857603]
[1772595115094,7.89211519,85.87,85.78,4.64857603]
[1772595115296,3.24353916,85.869,85.78,4.64857603]
[1772595115495,3.24353916,85.869,85.781,3.77168374]
[1772595115700,10.482,85.856,85.781,3.77168374]
[1772595115896,3.24353916,85.869,85.781,3.77168374]
[1772595116399,3.24353916,85.869,85.78,4.64857603]
[1772595116400,3.89285677,85.849,85.723,297.0]
[1772595116596,3.89285677,85.858,85.77,4.64857603]
[1772595116990,3.89285677,85.858,85.714,163.328]
[1772595117191,10.482,85.852,85.78,4.64857603]
[1772595117591,3.89285677,85.858,85.78,4.64857603]
[1772595117798,3.89285677,85.858,85.79,4.64857603]
[1772595117998,3.89285677,85.879,85.79,4.64857603]
[1772595118302,10.482,85.857,85.79,4.64857603]
[1772595118597,3.89285677,85.879,85.791,3.77168374]
[1772595119098,3.89285677,85.857,85.771,3.77168374]
[1772595119803,10.484,85.837,85.771,3.77168374]
[1772595120692,4.64857603,85.86,85.771,3.77168374]
[1772595120693,3.89285677,85.839,85.771,3.77168374]
[1772595120897,3.89285677,85.857,85.781,3.77168374]
[1772595121201,10.481,85.866,85.781,3.77168374]
[1772595121391,14.37385677,85.866,85.801,3.77168374]
[1772595121797,3.89285677,85.891,85.82,4.64857603]
[1772595122007,3.89285677,85.891,85.821,3.77168374]
[1772595122208,3.89285677,85.889,85.802,3.77168374]
[1772595122393,10.481,85.867,85.802,3.77168374]
[1772595122594,3.89285677,85.889,85.82,4.64857603]
[1772595122894,3.89285677,85.889,85.821,3.77168374]
[1772595123097,3.89285677,85.909,85.841,3.77168374]
[1772595123302,3.89285677,85.899,85.821,3.77168374]
[1772595123504,3.89285677,85.899,85.83,4.64857603]
[1772595123804,3.89285677,85.899,85.831,3.77168374]
[1772595124096,10.479,85.882,85.831,3.77168374]
[1772595124502,3.89285677,85.899,85.831,3.77168374]
[1772595125097,10.48,85.869,85.831,3.77168374]
[1772595125295,3.89285677,85.899,85.831,3.77168374]
[1772595125694,3.89285677,85.894,85.831,3.77168374]
[1772595126402,10.479,85.876,85.831,3.77168374]
[1772595127403,3.89285677,85.875,85.745,297.0]
[1772595127605,3.89285677,85.875,85.722,15.223402]
[1772595127606,3.89285677,85.859,85.77,4.64857603]
[1772595127903,10.484,85.843,85.771,10.492]
[1772595128709,10.485,85.833,85.77,4.64857603]
[1772595129104,3.89285677,85.832,85.722,15.223402]
[1772595129308,3.89285677,85.832,85.753,3.77168374]
[1772595129309,10.485,85.829,85.753,3.77168374]
[1772595129803,3.89285677,85.828,85.753,3.77168374]
[1772595130710,10.486,85.821,85.753,3.77168374]
[1772595131211,10.485,85.832,85.755,3.77168374]
[1772595131510,10.485,85.832,85.771,3.77168374]
[1772595132705,6.706521,85.895,85.8,4.64857603]
[1772595132916,6.706521,85.895,85.81,4.64857603]
[1772595133106,6.706521,85.879,85.81,4.64857603]
[1772595134006,6.706521,85.879,85.811,10.487]
[1772595134216,6.706521,85.879,85.81,4.64857603]
[1772595134414,6.63994393,85.899,85.81,4.64857603]
[1772595134910,6.63994393,85.897,85.821,10.486]
[1772595136015,6.6631678,85.895,85.821,10.486]
[1772595137010,6.6631678,85.891,85.821,10.486]
[1772595137209,6.6631678,85.879,85.799,10.489]
[1772595137410,6.6631678,85.879,85.79,4.64857603]
[1772595137611,6.6631678,85.879,85.723,163.31]
[1772595137811,6.6631678,85.879,85.78,4.64857603]
[1772595138011,4.64857603,85.86,85.795,10.489]
[1772595138406,6.66718704,85.839,85.75,4.64857603]
[1772595139512,6.66718704,85.839,85.768,10.493]
[1772595141116,4.64857603,85.82,85.757,10.494]
[1772595141317,6.79045149,85.819,85.757,10.494]
[1772595141712,6.79045149,85.819,85.746,10.495]
[1772595142110,6.79045149,85.779,85.67,163.412]
[1772595142312,6.79045149,85.779,85.71,10.5]
[1772595142508,6.79045149,85.779,85.71,4.64857603]
[1772595142712,6.79045149,85.779,85.7,4.64857603]
[1772595142913,6.79045149,85.769,85.7,4.64857603]
[1772595143316,6.79045149,85.788,85.7,4.64857603]
[1772595143921,6.79045149,85.788,85.71,10.5]
[1772595144116,6.79045149,85.788,85.7,4.64857603]
[1772595144715,6.79924458,85.807,85.72,4.64857603]
[1772595145212,6.79924458,85.807,85.735,10.497]
[1772595146219,6.79924458,85.807,85.72,4.64857603]
[1772595146517,6.79924458,85.807,85.7,4.64857603]
[1772595146518,6.79924458,85.807,85.74,4.64857603]
[1772595146720,6.7725707,85.826,85.73,4.64857603]
[1772595147016,6.7725707,85.809,85.73,4.64857603]
[1772595147220,6.7725707,85.807,85.73,4.64857603]
[1772595148318,6.81765671,85.805,85.73,4.64857603]
[1772595149223,6.81765671,85.827,85.75,4.64857603]
[1772595150629,9.63354503,85.837,85.77,4.64857603]
[1772595150919,6.81480968,85.847,85.77,4.64857603]
[1772595151118,6.81480968,85.847,85.771,10.492]
[1772595151318,6.81480968,85.847,85.77,4.64857603]
[1772595152222,4.64857603,85.87,85.75,4.64857603]
[1772595152223,16.46529663,85.866,85.79,4.64857603]
[1772595152418,6.81903394,85.864,85.791,10.49]
[1772595152926,6.81903394,85.864,85.79,4.64857603]
[1772595153120,6.81903394,85.862,85.79,4.64857603]
[1772595153819,6.81903394,85.862,85.78,4.64857603]
[1772595154724,6.81903394,85.862,85.8,4.64857603]
[1772595155317,6.81903394,85.862,85.75,4.64857603]
[1772595155318,6.81903394,85.862,85.78,4.64857603]
[1772595155519,6.8927205,85.86,85.78,4.64857603]
[1772595155718,6.8927205,85.858,85.78,4.64857603]
[1772595155923,6.8927205,85.855,85.78,4.64857603]
[1772595156116,6.8927205,85.853,85.78,4.64857603]
[1772595156319,6.8927205,85.852,85.782,10.491]
[1772595156720,6.8927205,85.852,85.78,4.64857603]
[1772595156926,6.8927205,85.85,85.76,4.64857603]
[1772595157125,6.8927205,85.848,85.76,4.64857603]
[1772595157435,6.8927205,85.846,85.76,4.64857603]
[1772595157729,6.84542238,85.839,85.76,4.64857603]
[1772595157928,6.84542238,85.837,85.76,4.64857603]
[1772595158131,6.84542238,85.835,85.76,4.64857603]
[1772595158426,6.84542238,85.83,85.76,15.14257603]
[1772595158822,10.485,85.828,85.748,10.495]
[1772595159027,6.84542238,85.827,85.748,10.495]
[1772595159629,6.85200994,85.825,85.758,10.494]
[1772595160121,4.64857603,85.82,85.747,10.495]
[1772595160320,6.85200994,85.819,85.73,4.64857603]
[1772595160525,6.85200994,85.779,85.7,4.64857603]
[1772595160826,6.85200994,85.779,85.709,10.5]
[1772595162219,6.85200994,85.779,85.7,4.64857603]
[1772595162832,6.85200994,85.779,85.7,15.14957603]
[1772595163324,6.86225373,85.777,85.7,15.14957603]
[1772595163720,6.86225373,85.777,85.712,10.499]
[1772595164229,6.86225373,85.775,85.7,10.501]
[1772595164926,6.86225373,85.775,85.711,10.499]
[1772595165322,6.86225373,85.775,85.7,4.64857603]
[1772595165524,6.86721625,85.774,85.7,4.64857603]
[1772595166126,6.86721625,85.769,85.722,0.000402]
[1772595167233,6.86721625,85.756,85.722,0.000402]
[1772595168636,10.493,85.766,85.722,0.000402]
[1772595168833,6.86667557,85.778,85.722,0.000402]
[1772595169524,6.89074586,85.775,85.722,0.000402]
[1772595170333,6.89074586,85.772,85.722,0.000402]
[1772595171134,17.38374586,85.768,85.722,0.000402]
[1772595171337,6.89074586,85.768,85.722,0.000402]
[1772595172433,6.89267955,85.786,85.722,0.000402]
[1772595172738,31.3931651,85.825,85.722,0.000402]
[1772595172739,6.89267955,85.802,85.73,4.66166184]
[1772595172933,6.89267955,85.789,85.722,0.000402]
[1772595173332,6.89267955,85.786,85.722,0.000402]
[1772595174842,6.89136374,85.809,85.73,4.66166184]
[1772595175036,6.89136374,85.809,85.75,4.66166184]
[1772595175333,6.89136374,85.809,85.722,0.000402]
[1772595175334,6.89136374,85.809,85.73,4.66166184]
[1772595176937,6.86772216,85.804,85.73,4.66166184]
[1772595177341,6.86772216,85.804,85.722,0.000402]
[1772595177542,6.86772216,85.804,85.73,4.66166184]
[1772595178132,6.9067007,85.792,85.722,0.000402]
[1772595178942,6.90806945,85.778,85.722,0.000402]
[1772595180143,6.90918335,85.799,85.722,0.000402]